[Event "9th Bangabandhu Blitz Women 2021"]
[Site "Dhaka"]
[Date "2021.04.03"]
[Round "1.3"]
[White "Sultana, Zakia"]
[Black "Jannatul, Ferdousi"]
[Result "1-0"]
[ECO "D02"]
[WhiteElo "1786"]
[BlackElo "1553"]
[Annotator "NA RC"]
[PlyCount "103"]
[EventDate "2021.04.02"]
[EventType "swiss"]
[EventCountry "BAN"]
[SourceTitle "playchess.com"]
[Source "ChessBase"]
[SourceQuality "1"]
[TimeControl "1500+10"]

1. d4 {[%emt 0:25:10]} d5 {[%emt 0:25:10]} 2. Nf3 Bf5 {[%emt 0:00:10]} 3. Bf4 {[%emt 0:00:20]} e6 {[%emt 0:00:10]} 4. e3 {[%emt 0:00:10]} Nf6 {[%emt 0:00:10]} 5. Nbd2 {[%emt 0:00:10]} Bd6 {[%emt 0:00:10]} 6. Bg3 {[%emt 0:00:10]} c5 {[%emt 0:00:10]} 7. c3 {[%emt 0:00:10]} O-O {[%emt 0:00:10]} 8. Be2 {[%emt 0:00:10]} Nc6 {[%emt 0:00:10]} 9. Ne5 {[%emt 0:00:10]} Bxe5 {[%emt 0:00:10]} 10. dxe5 {[%emt 0:00:10]} Nd7 11. f4 {[%emt 0:00:10]} f6 {[%emt 0:00:20]} 12. exf6 {[%emt 0:00:10]} Nxf6 {[%emt 0:00:10]} 13. Qc1 {[%emt 0:00:10]} Ne4 {[%emt 0:00:10]} 14. Nxe4 {[%emt 0:00:10]} Bxe4 {[%emt 0:00:10]} 15. O-O {[%emt 0:00:10]} Qe7 {[%emt 0:00:10]} 16. Bf3 {[%emt 0:00:10]} Bxf3 {[%emt 0:00:10]} 17. Rxf3 {[%emt 0:00:10]} e5 {[%emt 0:00:10]} 18. Qd2 {[%emt 0:00:10]} Rad8 {[%emt 0:00:10]} 19. Raf1 {[%emt 0:00:10]} e4 {[%emt 0:00:10]} 20. R3f2 {[%emt 0:00:10]} d4 {[%emt 0:00:10]} 21. cxd4 {[%emt 0:00:10]} cxd4 {[%emt 0:00:10]} 22. Re1 {[%emt 0:00:10]} dxe3 {[%emt 0:00:10]} 23. Qxe3 {[%emt 0:00:10]} Rfe8 {[%emt 0:00:10]} 24. a3 {[%emt 0:00:10]} Rd3 {[%emt 0:00:10]} 25. Qe2 {[%emt 0:00:10]} e3 {[%emt 0:00:10]} 26. Qxd3 {[%emt 0:00:10]} exf2+ {[%emt 0:00:10]} 27. Bxf2 {[%emt 0:00:10]} Qf7 {[%emt 0:00:10]} 28. Rxe8+ Qxe8 29. Qd5+ {[%emt 0:00:20]} Kh8 {[%emt 0:00:20]} 30. g3 {[%emt 0:00:10]} h6 {[%emt 0:00:10]} 31. b4 {[%emt 0:00:10]} Qe2 {[%emt 0:00:10]} 32. b5 {[%emt 0:00:10]} Na5 {[%emt 0:00:10]} 33. Qd8+ {[%emt 0:00:10]} Kh7 {[%emt 0:00:10]} 34. Qxa5 {[%emt 0:00:10]} Qd1+ {[%emt 0:00:10]} 35. Kg2 {[%emt 0:00:10]} Qd5+ 36. Kg1 {[%emt 0:00:10]} Qd1+ {[%emt 0:00:20]} 37. Qe1 {[%emt 0:00:10]} Qb3 {[%emt 0:00:10]} 38. Qe4+ {[%emt 0:00:10]} Kh8 {[%emt 0:00:10]} 39. a4 {[%emt 0:00:10]} Qd1+ {[%emt 0:00:10]} 40. Kg2 {[%emt 0:00:10]} Qd2 {[%emt 0:00:10]} 41. h4 {[%emt 0:00:10]} Qb2 {[%emt 0:00:10]} 42. Qxb7 {[%emt 0:00:10]} Qa3 {[%emt 0:00:10]} 43. Qb8+ {[%emt 0:00:10]} Kh7 {[%emt 0:00:10]} 44. Qxa7 {[%emt 0:00:10]} Qa2 {[%emt 0:00:10]} 45. Qd4 {[%emt 0:00:10]} Qc2 {[%emt 0:00:10]} 46. b6 {[%emt 0:00:10]} Qc6+ {[%emt 0:00:10]} 47. Kh2 {[%emt 0:00:10]} Qc2 {[%emt 0:00:10]} 48. b7 {[%emt 0:00:10]} Qb3 {[%emt 0:00:10]} 49. Qe4+ {[%emt 0:00:10]} Kh8 {[%emt 0:00:10]} 50. Kg2 {[%emt 0:00:10]} Qb2 {[%emt 0:00:10]} 51. a5 {[%emt 0:00:10]} Qb5 {[%emt 0:00:10]} 52. a6 {[%emt 0:00:10]} 1-0

[Event "9th Bangabandhu Blitz Women 2021"]
[Site "Dhaka"]
[Date "2021.04.03"]
[Round "2.3"]
[White "Wadifa, Ahmed"]
[Black "Sultana, Zakia"]
[Result "1/2-1/2"]
[ECO "C01"]
[WhiteElo "1595"]
[BlackElo "1786"]
[Annotator "NA RC"]
[PlyCount "87"]
[EventDate "2021.04.02"]
[EventType "swiss"]
[EventCountry "BAN"]
[SourceTitle "playchess.com"]
[Source "ChessBase"]
[SourceQuality "1"]
[TimeControl "1500+10"]

1. e4 {[%emt 0:25:10]} e6 2. d4 {[%emt 0:00:10]} d5 3. Nc3 {[%emt 0:00:10]} Nf6 {[%emt 0:25:30]} 4. exd5 {[%emt 0:00:10]} exd5 5. Bd3 {[%emt 0:00:10]} Be7 {[%emt 0:00:20]} 6. Nge2 {[%emt 0:00:10]} c6 {[%emt 0:00:10]} 7. O-O {[%emt 0:00:10]} O-O {[%emt 0:00:10]} 8. Bf4 {[%emt 0:00:10]} Bg4 {[%emt 0:00:10]} 9. h3 {[%emt 0:00:10]} Bh5 {[%emt 0:00:10]} 10. Bg3 {[%emt 0:00:10]} Bg6 {[%emt 0:00:10]} 11. Nf4 {[%emt 0:00:10]} Bxd3 {[%emt 0:00:10]} 12. Nxd3 {[%emt 0:00:10]} Nbd7 {[%emt 0:00:10]} 13. Re1 {[%emt 0:00:10]} Re8 14. Ne5 {[%emt 0:00:10]} Bf8 {[%emt 0:00:20]} 15. Bh2 {[%emt 0:00:10]} Nxe5 {[%emt 0:00:10]} 16. Rxe5 {[%emt 0:00:10]} Qd7 {[%emt 0:00:10]} 17. Qe2 {[%emt 0:00:10]} h6 {[%emt 0:00:10]} 18. Re1 {[%emt 0:00:10]} Rxe5 {[%emt 0:00:10]} 19. Bxe5 {[%emt 0:00:10]} Qf5 {[%emt 0:00:10]} 20. Nd1 {[%emt 0:00:10]} Re8 {[%emt 0:00:10]} 21. Ne3 {[%emt 0:00:10]} Qg6 {[%emt 0:00:10]} 22. Bxf6 {[%emt 0:00:10]} gxf6 {[%emt 0:00:10]} 23. Qd2 {[%emt 0:00:10]} Bd6 {[%emt 0:00:10]} 24. c3 {[%emt 0:00:10]} Bf4 {[%emt 0:00:10]} 25. g3 {[%emt 0:00:10]} Bxe3 {[%emt 0:00:10]} 26. Rxe3 {[%emt 0:00:10]} Rxe3 {[%emt 0:00:10]} 27. Qxe3 {[%emt 0:00:10]} Qb1+ {[%emt 0:00:10]} 28. Kg2 {[%emt 0:00:10]} Qxb2 {[%emt 0:00:10]} 29. Qxh6 {[%emt 0:00:10]} Qxc3 {[%emt 0:00:10]} 30. Qxf6 {[%emt 0:00:10]} Qb4 {[%emt 0:00:10]} 31. Qg5+ {[%emt 0:00:10]} Kf8 {[%emt 0:00:10]} 32. Qh6+ {[%emt 0:00:10]} Ke7 {[%emt 0:00:10]} 33. Qe3+ {[%emt 0:00:10]} Kf8 {[%emt 0:00:10]} 34. Qh6+ {[%emt 0:00:10]} Kg8 {[%emt 0:00:10]} 35. Qg5+ Kf8 {[%emt 0:00:10]} 36. Qh6+ Ke7 {[%emt 0:00:10]} 37. Qe3+ Kd7 {[%emt 0:00:10]} 38. Qf4 {[%emt 0:00:40]} Qe7 {[%emt 0:00:10]} 39. Qb8 {[%emt 0:00:10]} Qe4+ {[%emt 0:00:10]} 40. Kg1 {[%emt 0:00:10]} Qe1+ {[%emt 0:00:10]} 41. Kg2 {[%emt 0:00:10]} Qe4+ {[%emt 0:00:10]} 42. Kg1 Qe1+ {[%emt 0:00:10]} 43. Kg2 {[%emt 0:00:20]} Qe4+ {[%emt 0:00:10]} 44. Kg1 {[%emt 0:00:10]} 1/2-1/2

[Event "9th Bangabandhu Blitz Women 2021"]
[Site "Dhaka"]
[Date "2021.04.03"]
[Round "2.4"]
[White "Taspia, Tahsin Prima"]
[Black "Nusrat Jahan, Alo"]
[Result "1-0"]
[ECO "C16"]
[WhiteElo "1328"]
[BlackElo "1712"]
[Annotator "NA RC"]
[PlyCount "109"]
[EventDate "2021.04.02"]
[EventType "swiss"]
[EventCountry "BAN"]
[SourceTitle "playchess.com"]
[Source "ChessBase"]
[SourceQuality "1"]
[TimeControl "1500+10"]

1. e4 {[%emt 0:25:10]} e6 {[%emt 0:25:10]} 2. d4 d5 3. Nc3 {[%emt 0:00:20]} Bb4 {[%emt 0:00:20]} 4. e5 {[%emt 0:00:10]} Bxc3+ {[%emt 0:00:10]} 5. bxc3 {[%emt 0:00:10]} Ne7 {[%emt 0:00:10]} 6. Nf3 {[%emt 0:00:10]} O-O {[%emt 0:00:10]} 7. Bd3 {[%emt 0:00:10]} Nbc6 {[%emt 0:00:10]} 8. O-O {[%emt 0:00:10]} a6 {[%emt 0:00:10]} 9. Be3 {[%emt 0:00:10]} Qd7 {[%emt 0:00:10]} 10. c4 {[%emt 0:00:10]} Nd8 {[%emt 0:00:10]} 11. cxd5 {[%emt 0:00:10]} exd5 {[%emt 0:00:10]} 12. c3 {[%emt 0:00:10]} c6 {[%emt 0:00:10]} 13. Qc2 h6 {[%emt 0:00:10]} 14. h3 {[%emt 0:00:20]} Ne6 15. Rab1 Qc7 {[%emt 0:00:20]} 16. Nh2 {[%emt 0:00:20]} f6 {[%emt 0:00:10]} 17. f4 {[%emt 0:00:10]} fxe5 {[%emt 0:00:10]} 18. fxe5 {[%emt 0:00:10]} Bd7 {[%emt 0:00:10]} 19. Nf3 {[%emt 0:00:10]} Nf4 {[%emt 0:00:10]} 20. Bh7+ {[%emt 0:00:10]} Kh8 {[%emt 0:00:10]} 21. Bxf4 {[%emt 0:00:10]} Rxf4 {[%emt 0:00:10]} 22. Bd3 {[%emt 0:00:10]} Raf8 {[%emt 0:00:10]} 23. Qe2 {[%emt 0:00:10]} Nf5 {[%emt 0:00:10]} 24. Bxf5 {[%emt 0:00:10]} Bxf5 25. Rbe1 {[%emt 0:00:10]} Be4 {[%emt 0:00:20]} 26. Nd2 {[%emt 0:00:10]} Bg6 {[%emt 0:00:10]} 27. Rxf4 {[%emt 0:00:10]} Rxf4 28. Rf1 Qf7 {[%emt 0:00:20]} 29. e6 {[%emt 0:00:20]} Rxf1+ {[%emt 0:00:10]} 30. Nxf1 {[%emt 0:00:10]} Qe7 {[%emt 0:00:10]} 31. Ng3 {[%emt 0:00:10]} b6 {[%emt 0:00:10]} 32. Qe5 {[%emt 0:00:10]} b5 {[%emt 0:00:10]} 33. Nf5 Bxf5 34. Qxf5 Kg8 {[%emt 0:00:20]} 35. Kf2 {[%emt 0:00:30]} Qf6 {[%emt 0:00:10]} 36. Qxf6 {[%emt 0:00:10]} gxf6 37. Ke3 {[%emt 0:00:10]} Kf8 {[%emt 0:00:20]} 38. Kf4 Ke7 {[%emt 0:00:10]} 39. Kf5 a5 {[%emt 0:00:10]} 40. g4 {[%emt 0:00:30]} b4 {[%emt 0:00:10]} 41. cxb4 {[%emt 0:00:10]} axb4 42. h4 {[%emt 0:00:10]} c5 {[%emt 0:00:20]} 43. dxc5 {[%emt 0:00:10]} d4 {[%emt 0:00:10]} 44. Ke4 {[%emt 0:00:10]} d3 {[%emt 0:00:10]} 45. Kxd3 {[%emt 0:00:10]} Kxe6 {[%emt 0:00:10]} 46. Kc4 Kd7 {[%emt 0:00:10]} 47. Kxb4 {[%emt 0:00:20]} Kc6 48. a4 {[%emt 0:00:10]} Kc7 {[%emt 0:00:20]} 49. a5 {[%emt 0:00:10]} Kb7 50. Kb5 Kc7 {[%emt 0:00:20]} 51. a6 {[%emt 0:00:20]} Kb8 52. Kb6 Ka8 53. c6 {[%emt 0:00:20]} h5 {[%emt 0:00:30]} 54. c7 {[%emt 0:00:10]} hxg4 {[%emt 0:00:10]} 55. c8=Q# {[%emt 0:00:10]} 1-0

[Event "9th Bangabandhu Blitz Women 2021"]
[Site "Dhaka"]
[Date "2021.04.03"]
[Round "3.2"]
[White "Israt, Jahan Diba"]
[Black "Taspia, Tahsin Prima"]
[Result "1-0"]
[ECO "C54"]
[WhiteElo "1675"]
[BlackElo "1328"]
[Annotator "NA RC"]
[PlyCount "41"]
[EventDate "2021.04.02"]
[EventType "swiss"]
[EventCountry "BAN"]
[SourceTitle "playchess.com"]
[Source "ChessBase"]
[SourceQuality "1"]
[TimeControl "1500+10"]

1. e4 {[%emt 0:22:07]} e5 {[%emt 0:22:07]} 2. Nf3 {[%emt 0:00:10]} Nc6 {[%emt 0:00:08]} 3. Bc4 {[%emt 0:00:09]} Bc5 {[%emt 0:00:09]} 4. c3 {[%emt 0:00:09]} Nf6 {[%emt 0:03:16]} 5. d4 exd4 {[%emt 0:00:00]} 6. e5 {[%emt 0:00:17]} Ne4 {[%emt 0:00:00]} 7. Bb5 {[%emt 0:00:11]} dxc3 {[%emt 0:00:00]} 8. O-O {[%emt 0:00:26]} O-O {[%emt 0:00:00]} 9. Nxc3 {[%emt 0:00:11]} Nxc3 {[%emt 0:00:00]} 10. bxc3 {[%emt 0:00:09]} Re8 {[%emt 0:00:00]} 11. Qd5 {[%emt 0:00:20]} Bb6 {[%emt 0:00:00]} 12. Bc4 {[%emt 0:00:10]} Re6 {[%emt 0:00:00]} 13. Ng5 {[%emt 0:00:11]} Rxe5 {[%emt 0:00:00]} 14. Qxf7+ {[%emt 0:00:28]} Kh8 {[%emt 0:00:00]} 15. Qh5 {[%emt 0:00:26]} Rxg5 {[%emt 0:00:00]} 16. Bxg5 {[%emt 0:00:09]} Qf8 {[%emt 0:00:07]} 17. Bd3 {[%emt 0:00:14]} h6 {[%emt 0:00:15]} 18. Qg6 {[%emt 0:00:16]} Qg8 {[%emt 0:00:11]} 19. Rae1 {[%emt 0:00:13]} d5 {[%emt 0:00:12]} 20. Re8 {[%emt 0:00:10]} Bd7 {[%emt 0:00:27]} 21. Qh7# {[%emt 0:02:04]} 1-0

[Event "9th Bangabandhu Blitz Women 2021"]
[Site "Dhaka"]
[Date "2021.04.03"]
[Round "3.4"]
[White "Nusrat Jahan, Alo"]
[Black "Wadifa, Ahmed"]
[Result "1-0"]
[ECO "B22"]
[WhiteElo "1712"]
[BlackElo "1595"]
[Annotator "NA RC"]
[PlyCount "83"]
[EventDate "2021.04.02"]
[EventType "swiss"]
[EventCountry "BAN"]
[SourceTitle "playchess.com"]
[Source "ChessBase"]
[SourceQuality "1"]
[TimeControl "1500+10"]

1. e4 {[%emt 0:25:10]} c5 2. Nf3 {[%emt 0:00:10]} e6 3. c3 d5 {[%emt 0:25:30]} 4. exd5 {[%emt 0:00:20]} Qxd5 {[%emt 0:00:10]} 5. d4 {[%emt 0:00:10]} Nf6 {[%emt 0:00:10]} 6. Be3 {[%emt 0:00:10]} cxd4 {[%emt 0:00:10]} 7. Bxd4 {[%emt 0:00:10]} Be7 {[%emt 0:00:10]} 8. Be2 {[%emt 0:00:10]} O-O {[%emt 0:00:10]} 9. O-O {[%emt 0:00:10]} Nc6 10. h3 {[%emt 0:00:10]} Bd7 {[%emt 0:00:20]} 11. Nbd2 {[%emt 0:00:10]} Nxd4 {[%emt 0:00:10]} 12. Nxd4 {[%emt 0:00:10]} Bc6 {[%emt 0:00:10]} 13. Bf3 {[%emt 0:00:10]} Qd7 {[%emt 0:00:10]} 14. Bxc6 {[%emt 0:00:10]} bxc6 {[%emt 0:00:10]} 15. N2f3 {[%emt 0:00:10]} c5 {[%emt 0:00:10]} 16. Ne5 {[%emt 0:00:10]} Qc7 {[%emt 0:00:10]} 17. Ndf3 {[%emt 0:00:10]} Rfd8 {[%emt 0:00:10]} 18. Qc2 {[%emt 0:00:10]} h6 {[%emt 0:00:10]} 19. Rad1 {[%emt 0:00:10]} Nd5 {[%emt 0:00:10]} 20. c4 {[%emt 0:00:10]} Nb4 {[%emt 0:00:10]} 21. Qa4 {[%emt 0:00:10]} Bf6 {[%emt 0:00:10]} 22. Rxd8+ {[%emt 0:00:10]} Rxd8 {[%emt 0:00:10]} 23. a3 {[%emt 0:00:10]} Bxe5 {[%emt 0:00:10]} 24. axb4 {[%emt 0:00:10]} Bxb2 {[%emt 0:00:10]} 25. b5 {[%emt 0:00:10]} Bf6 {[%emt 0:00:10]} 26. Qb3 {[%emt 0:00:10]} Qb6 {[%emt 0:00:10]} 27. Nh2 {[%emt 0:00:10]} g6 {[%emt 0:00:10]} 28. Ng4 Bg7 {[%emt 0:00:10]} 29. Qe3 {[%emt 0:00:20]} h5 {[%emt 0:00:10]} 30. Nh2 {[%emt 0:00:10]} Rd4 {[%emt 0:00:10]} 31. Rc1 {[%emt 0:00:10]} Rd8 {[%emt 0:00:10]} 32. Nf3 {[%emt 0:00:10]} Rc8 {[%emt 0:00:10]} 33. Nd2 {[%emt 0:00:10]} Kh7 {[%emt 0:00:10]} 34. Qe2 {[%emt 0:00:10]} Bh6 {[%emt 0:00:10]} 35. Rc2 Bxd2 {[%emt 0:00:10]} 36. Qxd2 {[%emt 0:00:20]} Rd8 37. Qf4 {[%emt 0:00:10]} Qb7 {[%emt 0:00:20]} 38. Qf6 {[%emt 0:00:10]} Kg8 {[%emt 0:00:10]} 39. Qxd8+ {[%emt 0:00:10]} Kg7 {[%emt 0:00:10]} 40. Qd6 {[%emt 0:00:10]} Qe4 {[%emt 0:00:10]} 41. Qd2 {[%emt 0:00:10]} Qf5 {[%emt 0:00:10]} 42. Qc3+ {[%emt 0:00:10]} 1-0

[Event "9th Bangabandhu Blitz Women 2021"]
[Site "Dhaka"]
[Date "2021.04.03"]
[Round "4.4"]
[White "Taspia, Tahsin Prima"]
[Black "Jannatul, Ferdous"]
[Result "0-1"]
[ECO "B33"]
[WhiteElo "1328"]
[BlackElo "1710"]
[Annotator "NA RC"]
[PlyCount "88"]
[EventDate "2021.04.02"]
[EventType "swiss"]
[EventCountry "BAN"]
[SourceTitle "playchess.com"]
[Source "ChessBase"]
[SourceQuality "1"]
[TimeControl "1500+10"]

1. e4 {[%emt 0:25:10]} c5 {[%emt 0:25:10]} 2. Nf3 {[%emt 0:00:10]} Nc6 {[%emt 0:00:10]} 3. d4 cxd4 {[%emt 0:00:10]} 4. Nxd4 Nf6 {[%emt 0:00:10]} 5. Nc3 {[%emt 0:00:30]} a6 {[%emt 0:00:10]} 6. Be3 {[%emt 0:00:10]} e5 {[%emt 0:00:10]} 7. Nxc6 {[%emt 0:00:10]} bxc6 {[%emt 0:00:10]} 8. Bd3 {[%emt 0:00:10]} d5 {[%emt 0:00:10]} 9. exd5 cxd5 10. Bg5 {[%emt 0:00:20]} Be6 {[%emt 0:00:20]} 11. O-O {[%emt 0:00:10]} Be7 {[%emt 0:00:10]} 12. Re1 {[%emt 0:00:10]} e4 {[%emt 0:00:10]} 13. Be2 {[%emt 0:00:10]} O-O {[%emt 0:00:10]} 14. Qd4 {[%emt 0:00:10]} h6 {[%emt 0:00:10]} 15. Bh4 {[%emt 0:00:10]} Qd6 {[%emt 0:00:10]} 16. Rad1 {[%emt 0:00:10]} Rfd8 {[%emt 0:00:10]} 17. Bg3 {[%emt 0:00:10]} Qb4 {[%emt 0:00:10]} 18. Qxb4 {[%emt 0:00:10]} Bxb4 {[%emt 0:00:10]} 19. Be5 {[%emt 0:00:10]} Nd7 {[%emt 0:00:10]} 20. Bd4 {[%emt 0:00:10]} Bc5 {[%emt 0:00:10]} 21. Bxc5 Nxc5 22. Rd4 {[%emt 0:00:20]} Rd6 {[%emt 0:00:20]} 23. h3 {[%emt 0:00:10]} Rb8 {[%emt 0:00:10]} 24. b4 {[%emt 0:00:10]} Nb7 {[%emt 0:00:10]} 25. Bc4 {[%emt 0:00:10]} dxc4 {[%emt 0:00:10]} 26. Rexe4 {[%emt 0:00:10]} Rxd4 {[%emt 0:00:10]} 27. Rxd4 Rd8 {[%emt 0:00:10]} 28. Re4 {[%emt 0:00:20]} Rd2 {[%emt 0:00:10]} 29. Re2 {[%emt 0:00:10]} Rxe2 30. Nxe2 Bf5 {[%emt 0:00:20]} 31. c3 {[%emt 0:00:20]} a5 {[%emt 0:00:10]} 32. b5 {[%emt 0:00:10]} Bd7 {[%emt 0:00:10]} 33. a4 {[%emt 0:00:10]} Nc5 {[%emt 0:00:10]} 34. b6 {[%emt 0:00:10]} Bxa4 {[%emt 0:00:10]} 35. Nd4 {[%emt 0:00:10]} Bd7 {[%emt 0:00:10]} 36. f4 {[%emt 0:00:10]} a4 37. Nc2 {[%emt 0:00:10]} Bc6 {[%emt 0:00:20]} 38. Kf2 {[%emt 0:00:10]} Ne4+ {[%emt 0:00:10]} 39. Ke3 {[%emt 0:00:10]} Nxc3 40. Kd4 {[%emt 0:00:10]} Ne2+ {[%emt 0:00:20]} 41. Kxc4 {[%emt 0:00:10]} Nxf4 {[%emt 0:00:10]} 42. Kc5 {[%emt 0:00:10]} Bxg2 {[%emt 0:00:10]} 43. Kd6 {[%emt 0:00:10]} Ne6 {[%emt 0:00:10]} 44. Na3 {[%emt 0:00:10]} g5 {[%emt 0:00:10]} 0-1

[Event "9th Bangabandhu Blitz Women 2021"]
[Site "Dhaka"]
[Date "2021.04.03"]
[Round "5.1"]
[White "Parveen, Tanima"]
[Black "Noshin, Anjum"]
[Result "0-1"]
[ECO "C54"]
[WhiteElo "1984"]
[BlackElo "1912"]
[Annotator "NA"]
[PlyCount "55"]
[EventDate "2021.04.02"]
[EventType "swiss"]
[EventCountry "BAN"]
[SourceTitle "playchess.com"]
[Source "ChessBase"]
[SourceQuality "1"]
[TimeControl "1500+10"]

1. e4 {[%emt 0:22:07]} e5 {[%emt 0:22:07]} 2. Nf3 {[%emt 0:00:09]} Nc6 {[%emt 0:00:09]} 3. Bc4 {[%emt 0:00:10]} Bc5 {[%emt 0:00:09]} 4. c3 {[%emt 0:00:09]} Nf6 {[%emt 0:00:10]} 5. d4 {[%emt 0:00:11]} exd4 {[%emt 0:00:09]} 6. cxd4 {[%emt 0:00:09]} Bb4+ {[%emt 0:00:10]} 7. Bd2 {[%emt 0:00:11]} Bxd2+ {[%emt 0:00:31]} 8. Nbxd2 {[%emt 0:00:09]} d5 {[%emt 0:00:33]} 9. exd5 {[%emt 0:00:11]} Nxd5 {[%emt 0:00:09]} 10. O-O {[%emt 0:00:12]} O-O {[%emt 0:00:12]} 11. h3 {[%emt 0:00:17]} h6 {[%emt 0:00:14]} 12. Ne4 {[%emt 0:00:32]} Re8 {[%emt 0:00:23]} 13. Ng3 {[%emt 0:00:11]} Be6 {[%emt 0:00:14]} 14. a3 {[%emt 0:00:23]} Qf6 {[%emt 0:00:20]} 15. Re1 {[%emt 0:00:38]} Rad8 {[%emt 0:00:17]} 16. Ne4 {[%emt 0:00:34]} Qg6 {[%emt 0:00:51]} 17. Nh4 {[%emt 0:00:12]} Qh7 {[%emt 0:00:25]} 18. Bd3 {[%emt 0:00:10]} g6 {[%emt 0:00:17]} 19. Bc2 {[%emt 0:00:19]} Qg7 {[%emt 0:00:10]} 20. Nc5 {[%emt 0:00:17]} Qxd4 {[%emt 0:00:15]} 21. Nxe6 {[%emt 0:00:21]} Rxe6 {[%emt 0:00:16]} 22. Rxe6 {[%emt 0:00:58]} fxe6 {[%emt 0:00:10]} 23. Qxd4 {[%emt 0:00:10]} Nxd4 {[%emt 0:00:09]} 24. Bxg6 {[%emt 0:00:10]} Nf4 {[%emt 0:00:10]} 25. Be4 {[%emt 0:00:12]} Nb3 {[%emt 0:00:13]} 26. Re1 {[%emt 0:00:12]} c6 {[%emt 0:00:11]} 27. Bb1 {[%emt 0:00:10]} Rd2 {[%emt 0:00:15]} 28. Ba2 {[%emt 0:00:00]} 0-1

[Event "9th Bangabandhu Blitz Women 2021"]
[Site "Dhaka"]
[Date "2021.04.03"]
[Round "5.2"]
[White "Jannatul, Ferdous"]
[Black "Sultana, Sharmin Shirin"]
[Result "0-1"]
[ECO "B48"]
[WhiteElo "1710"]
[BlackElo "2006"]
[Annotator "NA"]
[PlyCount "70"]
[EventDate "2021.04.02"]
[EventType "swiss"]
[EventCountry "BAN"]
[SourceTitle "playchess.com"]
[Source "ChessBase"]
[SourceQuality "1"]
[TimeControl "1500+10"]

1. e4 {[%emt 0:22:08]} c5 {[%emt 0:22:06]} 2. Nf3 e6 3. d4 {[%emt 0:00:18]} cxd4 {[%emt 0:00:17]} 4. Nxd4 {[%emt 0:03:14]} a6 5. Nc3 {[%emt 0:00:10]} Qc7 6. Be3 {[%emt 0:00:00]} Nf6 {[%emt 0:00:33]} 7. a3 {[%emt 0:00:00]} b5 {[%emt 0:00:14]} 8. Bd3 {[%emt 0:00:00]} Bb7 {[%emt 0:00:09]} 9. O-O {[%emt 0:00:00]} Nc6 {[%emt 0:00:09]} 10. Kh1 {[%emt 0:00:00]} Nxd4 {[%emt 0:00:16]} 11. Bxd4 {[%emt 0:00:00]} Bc5 {[%emt 0:00:15]} 12. Bxc5 {[%emt 0:00:00]} Qxc5 {[%emt 0:00:09]} 13. Qe2 {[%emt 0:00:00]} d6 {[%emt 0:00:13]} 14. Rad1 {[%emt 0:00:00]} O-O {[%emt 0:00:11]} 15. f4 {[%emt 0:00:00]} Nd7 {[%emt 0:00:13]} 16. Rf3 {[%emt 0:00:00]} Rfe8 {[%emt 0:00:28]} 17. Rg3 {[%emt 0:00:00]} g6 {[%emt 0:00:30]} 18. h4 {[%emt 0:00:00]} Kh8 {[%emt 0:00:10]} 19. Rf1 {[%emt 0:00:00]} Nf6 {[%emt 0:00:16]} 20. Rg5 {[%emt 0:00:08]} Qc7 {[%emt 0:00:37]} 21. Qf2 {[%emt 0:00:09]} d5 {[%emt 0:00:15]} 22. e5 {[%emt 0:00:16]} Ng8 {[%emt 0:00:21]} 23. h5 {[%emt 0:00:14]} Qe7 {[%emt 0:00:18]} 24. Qh4 {[%emt 0:00:40]} Kg7 {[%emt 0:00:21]} 25. hxg6 {[%emt 0:00:37]} hxg6 {[%emt 0:00:21]} 26. Qg4 {[%emt 0:00:12]} Nh6 {[%emt 0:00:13]} 27. Qf3 {[%emt 0:00:31]} Rh8 {[%emt 0:00:11]} 28. Kg1 {[%emt 0:00:26]} Qc5+ {[%emt 0:00:14]} 29. Rf2 {[%emt 0:00:20]} Nf5 {[%emt 0:00:11]} 30. Bxf5 {[%emt 0:00:14]} exf5 {[%emt 0:00:08]} 31. Nd1 {[%emt 0:00:21]} Rh6 {[%emt 0:00:15]} 32. Kf1 {[%emt 0:00:16]} Rh1+ {[%emt 0:00:12]} 33. Ke2 {[%emt 0:00:08]} Qxc2+ {[%emt 0:00:09]} 34. Ke3 {[%emt 0:00:13]} d4+ {[%emt 0:00:10]} 35. Kxd4 {[%emt 0:00:15]} Qc4+ 0-1

[Event "9th Bangabandhu Blitz Women 2021"]
[Site "Dhaka"]
[Date "2021.04.03"]
[Round "5.3"]
[White "Nusrat Jahan, Alo"]
[Black "Talukder, Umme Taslima Protiva"]
[Result "0-1"]
[ECO "B50"]
[WhiteElo "1712"]
[BlackElo "1722"]
[Annotator "NA"]
[PlyCount "78"]
[EventDate "2021.04.02"]
[EventType "swiss"]
[EventCountry "BAN"]
[SourceTitle "playchess.com"]
[Source "ChessBase"]
[SourceQuality "1"]
[TimeControl "1500+10"]

1. e4 {[%emt 0:25:10]} c5 {[%emt 0:25:10]} 2. Nf3 {[%emt 0:00:10]} d6 3. c3 {[%emt 0:00:10]} Nf6 {[%emt 0:00:20]} 4. d3 {[%emt 0:00:10]} Nc6 {[%emt 0:00:10]} 5. Nbd2 {[%emt 0:00:10]} e6 {[%emt 0:00:10]} 6. d4 {[%emt 0:00:10]} cxd4 {[%emt 0:00:10]} 7. cxd4 Be7 {[%emt 0:00:10]} 8. Bd3 {[%emt 0:00:20]} e5 {[%emt 0:00:10]} 9. d5 {[%emt 0:00:10]} Nb4 {[%emt 0:00:10]} 10. Qa4+ {[%emt 0:00:10]} Bd7 {[%emt 0:00:10]} 11. Qxb4 {[%emt 0:00:10]} b6 {[%emt 0:00:10]} 12. O-O {[%emt 0:00:10]} O-O {[%emt 0:00:10]} 13. Nb3 {[%emt 0:00:10]} Rc8 {[%emt 0:00:10]} 14. Be3 {[%emt 0:00:10]} Ng4 {[%emt 0:00:10]} 15. Qd2 {[%emt 0:00:10]} Nxe3 {[%emt 0:00:10]} 16. Qxe3 {[%emt 0:00:10]} f5 {[%emt 0:00:10]} 17. exf5 {[%emt 0:00:10]} Bxf5 {[%emt 0:00:10]} 18. Bxf5 {[%emt 0:00:10]} Rxf5 {[%emt 0:00:10]} 19. Rfe1 {[%emt 0:00:10]} Qd7 {[%emt 0:00:10]} 20. h3 {[%emt 0:00:10]} Rcf8 {[%emt 0:00:10]} 21. Re2 {[%emt 0:00:10]} Qb7 {[%emt 0:00:10]} 22. Rd1 {[%emt 0:00:10]} Rc8 {[%emt 0:00:10]} 23. Qe4 {[%emt 0:00:10]} Rf4 {[%emt 0:00:10]} 24. Qe3 {[%emt 0:00:10]} Rfc4 {[%emt 0:00:10]} 25. Red2 {[%emt 0:00:10]} Qc7 {[%emt 0:00:10]} 26. Ng5 {[%emt 0:00:10]} Qd8 {[%emt 0:00:10]} 27. Ne6 {[%emt 0:00:10]} Qe8 {[%emt 0:00:10]} 28. Qg3 {[%emt 0:00:10]} Qf7 {[%emt 0:00:10]} 29. Rd3 {[%emt 0:00:10]} g6 {[%emt 0:00:10]} 30. Rc3 {[%emt 0:00:10]} Qf5 {[%emt 0:00:10]} 31. Rf3 {[%emt 0:00:10]} Qe4 {[%emt 0:00:10]} 32. Re3 {[%emt 0:00:10]} Qc2 {[%emt 0:00:10]} 33. Rc1 {[%emt 0:00:10]} Qxb2 {[%emt 0:00:10]} 34. Rxc4 Rxc4 {[%emt 0:00:10]} 35. Re1 {[%emt 0:00:20]} Qxa2 {[%emt 0:00:10]} 36. Qd3 {[%emt 0:00:10]} Rc2 {[%emt 0:00:10]} 37. Rf1 {[%emt 0:00:10]} Qb2 {[%emt 0:00:10]} 38. Na1 {[%emt 0:00:10]} Rd2 {[%emt 0:00:10]} 39. Nc7 {[%emt 0:00:10]} Rxd3 {[%emt 0:00:10]} 0-1